[Event "Late-Titled-Tuesday-Blitz-January-30-2024"]
[Site "Chess.com"]
[Date "2024.01.30"]
[Round "5"]
[White "leotobares"]
[Black "AndreyNeves"]
[Result "1-0"]
[WhiteElo "2402"]
[BlackElo "2077"]
[TimeControl "180+1"]
[EndTime "14:55:54 PST"]
[Termination "leotobares won by resignation"]

1. e4 {[%clk 0:03:00.9]} 1... c6 {[%clk 0:02:57.9]} 2. d4 {[%clk 0:02:59.4]}
2... d5 {[%clk 0:02:58.5]} 3. Nc3 {[%clk 0:02:58.2]} 3... dxe4 {[%clk
0:02:58.1]} 4. Nxe4 {[%clk 0:02:58.1]} 4... Nf6 {[%clk 0:02:58.8]} 5. Nxf6+
{[%clk 0:02:56.3]} 5... exf6 {[%clk 0:02:59.7]} 6. Bc4 {[%clk 0:02:49]} 6... Bd6
{[%clk 0:02:58.4]} 7. Ne2 {[%clk 0:02:47.5]} 7... O-O {[%clk 0:02:57.2]} 8. O-O
{[%clk 0:02:46.3]} 8... Bg4 {[%clk 0:02:54.5]} 9. h3 {[%clk 0:02:39.9]} 9... Bh5
{[%clk 0:02:54]} 10. Be3 {[%clk 0:02:32.5]} 10... Re8 {[%clk 0:02:52.3]} 11. Qd2
{[%clk 0:02:31.6]} 11... Nd7 {[%clk 0:02:46.3]} 12. Nf4 {[%clk 0:02:30.4]} 12...
Bg6 {[%clk 0:02:42.7]} 13. Nxg6 {[%clk 0:02:29.7]} 13... hxg6 {[%clk 0:02:43.6]}
14. Rae1 {[%clk 0:02:23.5]} 14... Nb6 {[%clk 0:02:42.8]} 15. Bb3 {[%clk
0:02:22.4]} 15... Nd5 {[%clk 0:02:42.1]} 16. Bxd5 {[%clk 0:02:17.8]} 16... cxd5
{[%clk 0:02:41.5]} 17. Bf4 {[%clk 0:02:16.5]} 17... Bxf4 {[%clk 0:02:35.5]} 18.
Qxf4 {[%clk 0:02:15.4]} 18... Qb6 {[%clk 0:02:36.1]} 19. b3 {[%clk 0:02:00.9]}
19... Re6 {[%clk 0:02:34.2]} 20. Rxe6 {[%clk 0:01:58.7]} 20... Qxe6 {[%clk
0:02:32.4]} 21. Rc1 {[%clk 0:01:54.4]} 21... b5 {[%clk 0:02:26.7]} 22. Qe3
{[%clk 0:01:49.2]} 22... Rc8 {[%clk 0:02:18.2]} 23. Qxe6 {[%clk 0:01:45.5]}
23... fxe6 {[%clk 0:02:17.6]} 24. Kf1 {[%clk 0:01:46.4]} 24... b4 {[%clk
0:02:15.5]} 25. Ke2 {[%clk 0:01:45]} 25... Kf7 {[%clk 0:02:10.9]} 26. Kd2 {[%clk
0:01:44.1]} 26... Rc3 {[%clk 0:02:05.3]} 27. a3 {[%clk 0:01:43.3]} 27... a5
{[%clk 0:01:49]} 28. axb4 {[%clk 0:01:43.5]} 28... axb4 {[%clk 0:01:49.1]} 29.
Ra1 {[%clk 0:01:43.8]} 29... e5 {[%clk 0:01:45.5]} 30. Ra4 {[%clk 0:01:39.5]}
30... Rc7 {[%clk 0:01:38]} 31. Rxb4 {[%clk 0:01:38]} 31... Ke6 {[%clk
0:01:36.7]} 32. Rb6+ {[%clk 0:01:34.9]} 32... Kf5 {[%clk 0:01:34]} 33. Rb5
{[%clk 0:01:30]} 33... Ke4 {[%clk 0:01:26]} 34. f3+ {[%clk 0:01:28.8]} 34...
Kxd4 {[%clk 0:01:18.7]} 35. c3+ {[%clk 0:01:13.8]} 35... Rxc3 {[%clk 0:01:17]}
36. Rb4+ {[%clk 0:01:12.9]} 36... Kc5 {[%clk 0:01:17]} 37. Kxc3 {[%clk
0:01:11.5]} 37... d4+ {[%clk 0:01:17.3]} 38. Rxd4 {[%clk 0:01:10.7]} 38... exd4+
{[%clk 0:01:17.5]} 39. Kd3 {[%clk 0:01:10.5]} 39... g5 {[%clk 0:00:56]} 40. g4
{[%clk 0:01:00.9]} 40... Kb4 {[%clk 0:00:52.4]} 41. Kxd4 {[%clk 0:01:00.8]}
41... Kxb3 {[%clk 0:00:52.7]} 42. Kd5 {[%clk 0:01:00.8]} 42... Kc3 {[%clk
0:00:52.4]} 43. Ke6 {[%clk 0:01:00.8]} 43... Kd3 {[%clk 0:00:51.7]} 44. Kf7
{[%clk 0:01:00.6]} 44... Ke3 {[%clk 0:00:50.3]} 45. Kxg7 {[%clk 0:01:00.6]}
45... Kxf3 {[%clk 0:00:48.3]} 46. Kxf6 {[%clk 0:01:00.3]} 1-0

[Event "Late-Titled-Tuesday-Blitz-January-30-2024"]
[Site "Chess.com"]
[Date "2024.01.30"]
[Round "5"]
[White "sotochess"]
[Black "Brahianzevich"]
[Result "0-1"]
[WhiteElo "2557"]
[BlackElo "2413"]
[TimeControl "180+1"]
[EndTime "14:56:05 PST"]
[Termination "Brahianzevich won by checkmate"]

1. e4 {[%clk 0:03:00.5]} 1... c5 {[%clk 0:03:00.2]} 2. Nf3 {[%clk 0:03:00.1]}
2... d6 {[%clk 0:03:00.6]} 3. d4 {[%clk 0:02:59.6]} 3... cxd4 {[%clk 0:03:01.5]}
4. Nxd4 {[%clk 0:03:00.2]} 4... Nf6 {[%clk 0:03:02]} 5. f3 {[%clk 0:03:00.3]}
5... a6 {[%clk 0:03:01.3]} 6. c4 {[%clk 0:03:00.1]} 6... Nc6 {[%clk 0:02:58.7]}
7. Nc2 {[%clk 0:02:53.4]} 7... e6 {[%clk 0:02:57.2]} 8. Nc3 {[%clk 0:02:53.2]}
8... Bd7 {[%clk 0:02:55.9]} 9. Be3 {[%clk 0:02:53.5]} 9... Be7 {[%clk
0:02:54.6]} 10. Qd2 {[%clk 0:02:53.1]} 10... O-O {[%clk 0:02:52]} 11. Be2 {[%clk
0:02:52.5]} 11... Qb8 {[%clk 0:02:48.8]} 12. O-O {[%clk 0:02:48.2]} 12... Ne5
{[%clk 0:02:46]} 13. Rfd1 {[%clk 0:02:42.7]} 13... Rc8 {[%clk 0:02:43]} 14. b3
{[%clk 0:02:38.4]} 14... b5 {[%clk 0:02:42.8]} 15. cxb5 {[%clk 0:02:38]} 15...
axb5 {[%clk 0:02:43.7]} 16. Nd4 {[%clk 0:02:37.2]} 16... d5 {[%clk 0:02:24.3]}
17. Ncxb5 {[%clk 0:02:07.9]} 17... dxe4 {[%clk 0:02:20.5]} 18. a4 {[%clk
0:02:00.4]} 18... exf3 {[%clk 0:01:55.7]} 19. gxf3 {[%clk 0:01:57.5]} 19... Bc5
{[%clk 0:01:42.6]} 20. Rac1 {[%clk 0:01:52.1]} 20... Nd5 {[%clk 0:01:41.6]} 21.
Rxc5 {[%clk 0:01:34.5]} 21... Nxe3 {[%clk 0:01:33.6]} 22. Qxe3 {[%clk
0:01:33.9]} 22... Rxc5 {[%clk 0:01:32.1]} 23. Nxe6 {[%clk 0:01:32.8]} 23... Rxb5
{[%clk 0:01:29]} 24. Bxb5 {[%clk 0:01:18.4]} 24... Bxe6 {[%clk 0:01:27.1]} 25.
Kg2 {[%clk 0:01:09.2]} 25... Ng6 {[%clk 0:01:25.9]} 26. Rd4 {[%clk 0:01:04.3]}
26... Qb6 {[%clk 0:01:06.2]} 27. Qd2 {[%clk 0:00:47.9]} 27... h6 {[%clk
0:00:55.8]} 28. Qd3 {[%clk 0:00:40.2]} 28... Rc8 {[%clk 0:00:47.4]} 29. b4
{[%clk 0:00:32.3]} 29... Rc1 {[%clk 0:00:40.2]} 30. h4 {[%clk 0:00:23]} 30...
Nf4+ {[%clk 0:00:34.4]} 31. Rxf4 {[%clk 0:00:15.3]} 31... Qg1# {[%clk
0:00:33.9]} 0-1

[Event "Late-Titled-Tuesday-Blitz-January-30-2024"]
[Site "Chess.com"]
[Date "2024.01.30"]
[Round "5"]
[White "Fh2411"]
[Black "Elsa167"]
[Result "0-1"]
[WhiteElo "2585"]
[BlackElo "2869"]
[TimeControl "180+1"]
[EndTime "14:56:07 PST"]
[Termination "Elsa167 won by resignation"]

1. d4 {[%clk 0:03:00.9]} 1... Nf6 {[%clk 0:02:59.3]} 2. Nf3 {[%clk 0:02:57.4]}
2... b6 {[%clk 0:02:57.6]} 3. Bf4 {[%clk 0:02:54.1]} 3... Bb7 {[%clk 0:02:57.9]}
4. e3 {[%clk 0:02:54.7]} 4... e6 {[%clk 0:02:54.1]} 5. Nbd2 {[%clk 0:02:50.7]}
5... c5 {[%clk 0:02:54.4]} 6. Nc4 {[%clk 0:02:46.3]} 6... cxd4 {[%clk
0:02:48.2]} 7. exd4 {[%clk 0:02:41.7]} 7... d6 {[%clk 0:02:46.7]} 8. a4 {[%clk
0:02:37]} 8... Be7 {[%clk 0:02:41.3]} 9. Bd3 {[%clk 0:02:33.7]} 9... O-O {[%clk
0:02:40.7]} 10. O-O {[%clk 0:02:31.7]} 10... Qc7 {[%clk 0:02:37.2]} 11. c3
{[%clk 0:02:21.5]} 11... Nbd7 {[%clk 0:02:36.4]} 12. Re1 {[%clk 0:02:22.2]}
12... Rfe8 {[%clk 0:02:34.9]} 13. Bg3 {[%clk 0:02:02.6]} 13... Bf8 {[%clk
0:02:34.5]} 14. Qe2 {[%clk 0:01:35.6]} 14... a6 {[%clk 0:02:33.2]} 15. Ncd2
{[%clk 0:01:19.5]} 15... g6 {[%clk 0:02:30.6]} 16. Ne4 {[%clk 0:01:16.1]} 16...
Nxe4 {[%clk 0:02:20.4]} 17. Bxe4 {[%clk 0:01:17]} 17... Nf6 {[%clk 0:02:19.1]}
18. Bxb7 {[%clk 0:01:13]} 18... Qxb7 {[%clk 0:02:20]} 19. Bh4 {[%clk 0:00:56.7]}
19... Nd5 {[%clk 0:01:59.2]} 20. c4 {[%clk 0:00:53.5]} 20... Nf4 {[%clk
0:01:58.7]} 21. Qe3 {[%clk 0:00:42.8]} 21... e5 {[%clk 0:01:56.4]} 22. Bf6
{[%clk 0:00:16.5]} 22... Bh6 {[%clk 0:01:41.4]} 23. Qe4 {[%clk 0:00:16.3]} 23...
Qxe4 {[%clk 0:01:25.6]} 24. Rxe4 {[%clk 0:00:17.2]} 24... Nh5 {[%clk 0:01:23.8]}
25. Bh4 {[%clk 0:00:14.4]} 25... f5 {[%clk 0:01:19.7]} 26. Re2 {[%clk
0:00:14.2]} 26... e4 {[%clk 0:01:18.1]} 27. Ne1 {[%clk 0:00:13.8]} 27... g5
{[%clk 0:01:17.4]} 28. Bg3 {[%clk 0:00:06.6]} 28... f4 {[%clk 0:01:17.4]} 29. d5
{[%clk 0:00:06]} 29... Bg7 {[%clk 0:01:14.1]} 30. Rd1 {[%clk 0:00:05.2]} 30...
a5 {[%clk 0:01:11.1]} 31. b3 {[%clk 0:00:05.4]} 31... Nf6 {[%clk 0:01:06.7]} 32.
Nc2 {[%clk 0:00:05.4]} 32... Nd7 {[%clk 0:01:04.5]} 33. Nd4 {[%clk 0:00:05.5]}
33... Bxd4 {[%clk 0:01:03.6]} 34. Rxd4 {[%clk 0:00:06.4]} 34... Nc5 {[%clk
0:01:03.4]} 35. Rb2 {[%clk 0:00:06.6]} 35... Re7 {[%clk 0:00:59.2]} 36. h3
{[%clk 0:00:05.4]} 36... fxg3 {[%clk 0:00:59.5]} 37. fxg3 {[%clk 0:00:06.3]}
37... e3 {[%clk 0:00:59.8]} 0-1

[Event "Late-Titled-Tuesday-Blitz-January-30-2024"]
[Site "Chess.com"]
[Date "2024.01.30"]
[Round "5"]
[White "rose107"]
[Black "BebeBonito2022"]
[Result "1-0"]
[WhiteElo "2128"]
[BlackElo "2323"]
[TimeControl "180+1"]
[EndTime "14:56:07 PST"]
[Termination "rose107 won by checkmate"]

1. e4 {[%clk 0:03:00.9]} 1... e5 {[%clk 0:03:00.1]} 2. Nf3 {[%clk 0:03:00.3]}
2... Nc6 {[%clk 0:03:00.4]} 3. Bc4 {[%clk 0:02:59.3]} 3... Nf6 {[%clk
0:03:00.2]} 4. d4 {[%clk 0:02:54.2]} 4... exd4 {[%clk 0:03:00.2]} 5. e5 {[%clk
0:02:54.2]} 5... d5 {[%clk 0:03:00.4]} 6. Bb5 {[%clk 0:02:53.5]} 6... Ne4 {[%clk
0:03:00.7]} 7. Nxd4 {[%clk 0:02:54.1]} 7... Bc5 {[%clk 0:03:01]} 8. Be3 {[%clk
0:02:49.8]} 8... O-O {[%clk 0:02:50.4]} 9. Bxc6 {[%clk 0:02:49]} 9... bxc6
{[%clk 0:02:45.4]} 10. O-O {[%clk 0:02:48.9]} 10... Ba6 {[%clk 0:02:28.4]} 11.
Re1 {[%clk 0:02:45.7]} 11... Bxd4 {[%clk 0:01:36.1]} 12. Bxd4 {[%clk 0:02:37.5]}
12... c5 {[%clk 0:01:32.2]} 13. Be3 {[%clk 0:02:36.4]} 13... Bb7 {[%clk
0:01:25.6]} 14. f3 {[%clk 0:02:18.4]} 14... Ng5 {[%clk 0:01:24.9]} 15. Bxc5
{[%clk 0:02:16.9]} 15... Re8 {[%clk 0:01:23.8]} 16. c3 {[%clk 0:02:11.1]} 16...
Ne6 {[%clk 0:01:20.7]} 17. Bd4 {[%clk 0:02:10.6]} 17... c5 {[%clk 0:01:20.9]}
18. Bf2 {[%clk 0:02:09.4]} 18... Qb6 {[%clk 0:01:15.9]} 19. Qc2 {[%clk
0:02:04.9]} 19... d4 {[%clk 0:00:56.5]} 20. Nd2 {[%clk 0:01:53.2]} 20... Rad8
{[%clk 0:00:56.3]} 21. cxd4 {[%clk 0:01:53]} 21... cxd4 {[%clk 0:00:53.2]} 22.
Nb3 {[%clk 0:01:36]} 22... Qb5 {[%clk 0:00:46.1]} 23. Rad1 {[%clk 0:01:35.3]}
23... d3 {[%clk 0:00:45.7]} 24. Qc3 {[%clk 0:01:27.4]} 24... Nf4 {[%clk
0:00:43.8]} 25. Nd4 {[%clk 0:01:11.5]} 25... Qd5 {[%clk 0:00:43.1]} 26. Qd2
{[%clk 0:00:57.4]} 26... g5 {[%clk 0:00:22.3]} 27. h4 {[%clk 0:00:53.2]} 27...
Rxe5 {[%clk 0:00:18.1]} 28. hxg5 {[%clk 0:00:49.6]} 28... Rxe1+ {[%clk
0:00:17.2]} 29. Rxe1 {[%clk 0:00:48.7]} 29... Qxg5 {[%clk 0:00:16.8]} 30. Be3
{[%clk 0:00:42.3]} 30... Rxd4 {[%clk 0:00:15.9]} 31. Bxd4 {[%clk 0:00:37.2]}
31... Nh3+ {[%clk 0:00:15.2]} 32. Kf1 {[%clk 0:00:36.4]} 32... Qxd2 {[%clk
0:00:15.5]} 33. Re8# {[%clk 0:00:34.5]} 1-0

[Event "Late-Titled-Tuesday-Blitz-January-30-2024"]
[Site "Chess.com"]
[Date "2024.01.30"]
[Round "5"]
[White "Seochesspie"]
[Black "ValeriyGrinev"]
[Result "1-0"]
[WhiteElo "2853"]
[BlackElo "2561"]
[TimeControl "180+1"]
[EndTime "14:56:09 PST"]
[Termination "Seochesspie won by checkmate"]

1. d4 {[%clk 0:03:00.9]} 1... Nf6 {[%clk 0:02:59.3]} 2. Bg5 {[%clk 0:03:01.5]}
2... d5 {[%clk 0:02:58.1]} 3. Nd2 {[%clk 0:03:01.2]} 3... h6 {[%clk 0:02:57.2]}
4. Bh4 {[%clk 0:02:57.8]} 4... Nbd7 {[%clk 0:02:54.3]} 5. e3 {[%clk 0:02:57.6]}
5... c6 {[%clk 0:02:53.4]} 6. f4 {[%clk 0:02:53.4]} 6... e6 {[%clk 0:02:52.2]}
7. c3 {[%clk 0:02:53.5]} 7... Be7 {[%clk 0:02:51.6]} 8. Ngf3 {[%clk 0:02:51.1]}
8... b6 {[%clk 0:02:50.6]} 9. Bd3 {[%clk 0:02:50.4]} 9... Bb7 {[%clk 0:02:50.4]}
10. Qe2 {[%clk 0:02:50.6]} 10... Rc8 {[%clk 0:02:48.2]} 11. O-O {[%clk
0:02:47.4]} 11... c5 {[%clk 0:02:47.1]} 12. Ne5 {[%clk 0:02:45.2]} 12... cxd4
{[%clk 0:02:46.2]} 13. exd4 {[%clk 0:02:45.2]} 13... Nxe5 {[%clk 0:02:42.9]} 14.
fxe5 {[%clk 0:02:44]} 14... Nd7 {[%clk 0:02:42.2]} 15. Bxe7 {[%clk 0:02:25]}
15... Qxe7 {[%clk 0:02:43.1]} 16. Rf4 {[%clk 0:02:16.2]} 16... f6 {[%clk
0:02:35.5]} 17. exf6 {[%clk 0:02:15.7]} 17... gxf6 {[%clk 0:02:30.9]} 18. Re1
{[%clk 0:02:07.3]} 18... e5 {[%clk 0:02:30.4]} 19. Bf5 {[%clk 0:02:01.1]} 19...
e4 {[%clk 0:02:03.3]} 20. Qh5+ {[%clk 0:01:55.6]} 20... Kd8 {[%clk 0:02:02.6]}
21. Nf1 {[%clk 0:01:48]} 21... Kc7 {[%clk 0:01:33.4]} 22. Ne3 {[%clk 0:01:44.3]}
22... Rcf8 {[%clk 0:01:23.9]} 23. Ref1 {[%clk 0:01:43.2]} 23... Qd6 {[%clk
0:01:07.2]} 24. Bxd7 {[%clk 0:01:40.8]} 24... Kxd7 {[%clk 0:01:05.6]} 25. Ng4
{[%clk 0:01:37.3]} 25... Ba6 {[%clk 0:00:47.6]} 26. Rxf6 {[%clk 0:01:27.9]}
26... Bxf1 {[%clk 0:00:30]} 27. Rxd6+ {[%clk 0:01:27.3]} 27... Kxd6 {[%clk
0:00:30.2]} 28. Qe5+ {[%clk 0:01:27.1]} 28... Kc6 {[%clk 0:00:29.6]} 29. Nf6
{[%clk 0:01:24.6]} 29... Bc4 {[%clk 0:00:19.2]} 30. b3 {[%clk 0:01:24.4]} 30...
Bd3 {[%clk 0:00:18.6]} 31. Qxd5+ {[%clk 0:01:19.8]} 31... Kc7 {[%clk 0:00:18.8]}
32. Qe5+ {[%clk 0:01:19.6]} 32... Kb7 {[%clk 0:00:18.9]} 33. h4 {[%clk 0:01:14]}
33... Rc8 {[%clk 0:00:15]} 34. c4 {[%clk 0:01:13]} 34... Rhd8 {[%clk 0:00:14.3]}
35. Nxe4 {[%clk 0:01:10.6]} 35... Bxe4 {[%clk 0:00:13.4]} 36. Qxe4+ {[%clk
0:01:10.9]} 36... Ka6 {[%clk 0:00:14.2]} 37. d5 {[%clk 0:01:10.2]} 37... Re8
{[%clk 0:00:14.8]} 38. Qd3 {[%clk 0:01:09.1]} 38... Kb7 {[%clk 0:00:12.8]} 39.
d6 {[%clk 0:01:07.1]} 39... Rcd8 {[%clk 0:00:12.7]} 40. Qd5+ {[%clk 0:01:07.3]}
40... Ka6 {[%clk 0:00:12.3]} 41. b4 {[%clk 0:01:06.1]} 41... Re1+ {[%clk
0:00:11]} 42. Kh2 {[%clk 0:01:06]} 42... Rc1 {[%clk 0:00:10.7]} 43. c5 {[%clk
0:01:04.7]} 43... bxc5 {[%clk 0:00:11.2]} 44. Qc6# {[%clk 0:01:03.7]} 1-0

[Event "Late-Titled-Tuesday-Blitz-January-30-2024"]
[Site "Chess.com"]
[Date "2024.01.30"]
[Round "5"]
[White "Mops_2004"]
[Black "jsdbv18"]
[Result "1-0"]
[WhiteElo "2776"]
[BlackElo "2608"]
[TimeControl "180+1"]
[EndTime "14:56:11 PST"]
[Termination "Mops_2004 won by resignation"]

1. f4 {[%clk 0:03:00.9]} 1... Nf6 {[%clk 0:02:57]} 2. Nf3 {[%clk 0:03:00.9]}
2... c5 {[%clk 0:02:54.7]} 3. d3 {[%clk 0:02:57.7]} 3... d5 {[%clk 0:02:54.2]}
4. g3 {[%clk 0:02:57.7]} 4... g6 {[%clk 0:02:52.9]} 5. Bg2 {[%clk 0:02:57.8]}
5... Bg7 {[%clk 0:02:53.6]} 6. O-O {[%clk 0:02:58.3]} 6... O-O {[%clk
0:02:54.4]} 7. Qe1 {[%clk 0:02:58.4]} 7... Qb6 {[%clk 0:02:54.2]} 8. Kh1 {[%clk
0:02:44.8]} 8... d4 {[%clk 0:02:38.5]} 9. Ne5 {[%clk 0:02:39.3]} 9... Nbd7
{[%clk 0:02:36.3]} 10. Nc4 {[%clk 0:02:33.8]} 10... Qc7 {[%clk 0:02:36.4]} 11.
a4 {[%clk 0:02:27.4]} 11... Nb6 {[%clk 0:02:36.2]} 12. Nbd2 {[%clk 0:02:10.5]}
12... Bd7 {[%clk 0:02:02.8]} 13. a5 {[%clk 0:02:05.8]} 13... Nxc4 {[%clk
0:02:02.1]} 14. Nxc4 {[%clk 0:02:06]} 14... Bc6 {[%clk 0:02:02.7]} 15. e4 {[%clk
0:02:03.5]} 15... dxe3 {[%clk 0:02:01.5]} 16. Bxe3 {[%clk 0:02:03]} 16... Bxg2+
{[%clk 0:02:01.7]} 17. Kxg2 {[%clk 0:02:03.1]} 17... Nd5 {[%clk 0:01:57.2]} 18.
Bd2 {[%clk 0:01:58.4]} 18... Rad8 {[%clk 0:01:48]} 19. Qe4 {[%clk 0:01:56.3]}
19... Rfe8 {[%clk 0:01:43.6]} 20. f5 {[%clk 0:01:55.4]} 20... e6 {[%clk
0:01:38.2]} 21. fxg6 {[%clk 0:01:53.4]} 21... hxg6 {[%clk 0:01:38.5]} 22. Rae1
{[%clk 0:01:49.6]} 22... f5 {[%clk 0:01:37.7]} 23. Qf3 {[%clk 0:01:47.7]} 23...
e5 {[%clk 0:01:37.1]} 24. Rf2 {[%clk 0:01:43.4]} 24... Nf6 {[%clk 0:01:32.2]}
25. Bc3 {[%clk 0:01:32.9]} 25... e4 {[%clk 0:01:18.9]} 26. dxe4 {[%clk
0:01:18.7]} 26... Nxe4 {[%clk 0:01:17.5]} 27. Rfe2 {[%clk 0:01:14.4]} 27... Bxc3
{[%clk 0:01:15.1]} 28. bxc3 {[%clk 0:01:14.7]} 28... Qf7 {[%clk 0:01:13.3]} 29.
Nb2 {[%clk 0:01:01.6]} 29... c4 {[%clk 0:01:06.6]} 30. Nd1 {[%clk 0:00:50]}
30... Re5 {[%clk 0:00:59.5]} 31. Nf2 {[%clk 0:00:43.1]} 31... Nd2 {[%clk
0:00:29.6]} 32. Rxd2 {[%clk 0:00:35.4]} 32... Rxd2 {[%clk 0:00:28.2]} 33. Rxe5
{[%clk 0:00:35.1]} 33... Rxc2 {[%clk 0:00:28.6]} 34. Qd1 {[%clk 0:00:26.6]} 1-0

[Event "Late-Titled-Tuesday-Blitz-January-30-2024"]
[Site "Chess.com"]
[Date "2024.01.30"]
[Round "5"]
[White "subham777"]
[Black "YurasovMat-2012"]
[Result "0-1"]
[WhiteElo "2491"]
[BlackElo "2668"]
[TimeControl "180+1"]
[EndTime "14:56:14 PST"]
[Termination "YurasovMat-2012 won on time"]

1. e4 {[%clk 0:03:00.9]} 1... e5 {[%clk 0:02:44.9]} 2. Nf3 {[%clk 0:02:56.4]}
2... Nf6 {[%clk 0:02:45.1]} 3. Nxe5 {[%clk 0:02:56.2]} 3... d6 {[%clk
0:02:39.4]} 4. Nf3 {[%clk 0:02:55.2]} 4... Nxe4 {[%clk 0:02:39.9]} 5. Nc3 {[%clk
0:02:54.7]} 5... Nxc3 {[%clk 0:02:40.5]} 6. dxc3 {[%clk 0:02:55.3]} 6... Be7
{[%clk 0:02:39.9]} 7. Be3 {[%clk 0:02:55.8]} 7... Nd7 {[%clk 0:02:40.1]} 8. Qd2
{[%clk 0:02:56.3]} 8... Nf6 {[%clk 0:02:40.7]} 9. O-O-O {[%clk 0:02:56.9]} 9...
O-O {[%clk 0:02:40.9]} 10. Kb1 {[%clk 0:02:57.3]} 10... c5 {[%clk 0:02:40.8]}
11. h3 {[%clk 0:02:56.7]} 11... d5 {[%clk 0:02:39]} 12. g4 {[%clk 0:02:54.4]}
12... Be6 {[%clk 0:02:37.5]} 13. Bg2 {[%clk 0:02:51.2]} 13... Qb6 {[%clk
0:02:35.6]} 14. Ng5 {[%clk 0:02:41.7]} 14... h6 {[%clk 0:02:22.5]} 15. Nxe6
{[%clk 0:02:40.7]} 15... fxe6 {[%clk 0:02:23.4]} 16. Rhe1 {[%clk 0:02:26.2]}
16... Rad8 {[%clk 0:02:20.7]} 17. Bxh6 {[%clk 0:02:11.7]} 17... gxh6 {[%clk
0:02:19.8]} 18. Qxh6 {[%clk 0:02:12.2]} 18... Kf7 {[%clk 0:02:09.3]} 19. g5
{[%clk 0:01:57.7]} 19... Rh8 {[%clk 0:02:06.9]} 20. g6+ {[%clk 0:01:57.6]} 20...
Kg8 {[%clk 0:02:06.2]} 21. Qe3 {[%clk 0:01:52.7]} 21... Rd6 {[%clk 0:02:05]} 22.
f4 {[%clk 0:01:41.4]} 22... Rh5 {[%clk 0:01:57.8]} 23. Qg3 {[%clk 0:01:06.2]}
23... Kg7 {[%clk 0:01:45.5]} 24. Bf3 {[%clk 0:01:03.5]} 24... Rf5 {[%clk
0:01:42]} 25. Bg4 {[%clk 0:00:58.6]} 25... Ne4 {[%clk 0:01:38.1]} 26. Qe3 {[%clk
0:00:35.1]} 26... Bf6 {[%clk 0:01:33.7]} 27. Ka1 {[%clk 0:00:24.8]} 27... Qa5
{[%clk 0:01:26.3]} 28. Qxe4 {[%clk 0:00:12.2]} 28... dxe4 {[%clk 0:01:22.3]} 29.
Rxd6 {[%clk 0:00:13.1]} 29... Rxf4 {[%clk 0:01:17.1]} 30. Rd7+ {[%clk
0:00:08.1]} 30... Kxg6 {[%clk 0:01:16.7]} 31. Rg1 {[%clk 0:00:08.7]} 31... Bg5
{[%clk 0:01:08.9]} 32. Bxe6 {[%clk 0:00:07]} 32... Qb5 {[%clk 0:01:02.7]} 33. c4
{[%clk 0:00:05.8]} 33... Qc6 {[%clk 0:01:00.2]} 34. Rgd1 {[%clk 0:00:04.9]}
34... Qxe6 {[%clk 0:00:56.5]} 35. R7d6 {[%clk 0:00:02.8]} 35... Qxd6 {[%clk
0:00:56.7]} 36. Rxd6+ {[%clk 0:00:03.3]} 36... Rf6 {[%clk 0:00:56.2]} 37. Rxf6+
{[%clk 0:00:02.6]} 37... Kxf6 {[%clk 0:00:55.1]} 38. Kb1 {[%clk 0:00:03.3]}
38... e3 {[%clk 0:00:54.5]} 0-1

[Event "Late-Titled-Tuesday-Blitz-January-30-2024"]
[Site "Chess.com"]
[Date "2024.01.30"]
[Round "5"]
[White "Hikaru"]
[Black "Sebastian"]
[Result "1-0"]
[WhiteElo "3295"]
[BlackElo "2952"]
[TimeControl "180+1"]
[EndTime "14:56:22 PST"]
[Termination "Hikaru won by resignation"]

1. e4 {[%clk 0:03:00.9]} 1... e5 {[%clk 0:02:59.1]} 2. Bc4 {[%clk 0:03:01.5]}
2... Nf6 {[%clk 0:02:58.7]} 3. d3 {[%clk 0:03:02.2]} 3... Nc6 {[%clk 0:02:56.2]}
4. Nc3 {[%clk 0:03:01.9]} 4... Bc5 {[%clk 0:02:52.8]} 5. h3 {[%clk 0:02:57.7]}
5... O-O {[%clk 0:02:50.9]} 6. Nge2 {[%clk 0:02:57.9]} 6... d6 {[%clk
0:02:48.3]} 7. O-O {[%clk 0:02:57.8]} 7... a6 {[%clk 0:02:46.1]} 8. a4 {[%clk
0:02:57.7]} 8... Be6 {[%clk 0:02:43.7]} 9. Ng3 {[%clk 0:02:57.9]} 9... Bxc4
{[%clk 0:02:26.8]} 10. dxc4 {[%clk 0:02:57.8]} 10... Nd4 {[%clk 0:02:27.4]} 11.
Bg5 {[%clk 0:02:53.3]} 11... Ne6 {[%clk 0:02:26.6]} 12. Bd2 {[%clk 0:02:52.6]}
12... Nd7 {[%clk 0:02:15.6]} 13. Kh2 {[%clk 0:02:45.1]} 13... g6 {[%clk
0:02:14]} 14. Nce2 {[%clk 0:02:44]} 14... Re8 {[%clk 0:02:06.1]} 15. a5 {[%clk
0:02:37.2]} 15... c6 {[%clk 0:01:56.2]} 16. b4 {[%clk 0:02:37.2]} 16... Ba7
{[%clk 0:01:55.7]} 17. c3 {[%clk 0:02:35.1]} 17... Qe7 {[%clk 0:01:55]} 18. Qc2
{[%clk 0:02:33.2]} 18... Rad8 {[%clk 0:01:54.3]} 19. Rad1 {[%clk 0:02:33.4]}
19... h5 {[%clk 0:01:53.9]} 20. Qc1 {[%clk 0:02:30.5]} 20... Nf6 {[%clk
0:01:36.1]} 21. Be3 {[%clk 0:02:28.5]} 21... Bxe3 {[%clk 0:01:33.1]} 22. Qxe3
{[%clk 0:02:28.4]} 22... h4 {[%clk 0:01:30.3]} 23. Nh1 {[%clk 0:02:28.5]} 23...
Nh5 {[%clk 0:01:30.7]} 24. Rd2 {[%clk 0:02:25]} 24... Qg5 {[%clk 0:01:09.9]} 25.
Qxg5 {[%clk 0:02:24.1]} 25... Nxg5 {[%clk 0:01:10.8]} 26. f3 {[%clk 0:02:24.7]}
26... Kf8 {[%clk 0:01:10.2]} 27. Nf2 {[%clk 0:02:21.3]} 27... Ne6 {[%clk
0:01:09.7]} 28. Nd1 {[%clk 0:02:12.7]} 28... Ke7 {[%clk 0:01:08.2]} 29. Ne3
{[%clk 0:02:12.9]} 29... Nhf4 {[%clk 0:01:02.6]} 30. Rb1 {[%clk 0:02:10]} 30...
Nxe2 {[%clk 0:01:01.5]} 31. Rxe2 {[%clk 0:02:10.9]} 31... Rh8 {[%clk 0:00:58.8]}
32. Ng4 {[%clk 0:01:58.8]} 32... f5 {[%clk 0:00:54.4]} 33. Nf2 {[%clk
0:01:59.1]} 33... Kf6 {[%clk 0:00:50.3]} 34. Nd3 {[%clk 0:01:56.4]} 34... Rhe8
{[%clk 0:00:46.1]} 35. b5 {[%clk 0:01:47.8]} 35... axb5 {[%clk 0:00:40.5]} 36.
cxb5 {[%clk 0:01:48.7]} 36... Ra8 {[%clk 0:00:40.5]} 37. Ra2 {[%clk 0:01:39.6]}
37... cxb5 {[%clk 0:00:22.1]} 38. Rxb5 {[%clk 0:01:38.6]} 38... Re7 {[%clk
0:00:22.1]} 39. Rb6 {[%clk 0:01:33.2]} 39... Rd7 {[%clk 0:00:22.2]} 40. Ra4
{[%clk 0:01:02.4]} 40... Rc8 {[%clk 0:00:18.8]} 41. exf5 {[%clk 0:01:00.1]}
41... gxf5 {[%clk 0:00:19]} 42. Rxh4 {[%clk 0:01:00.8]} 42... Rxc3 {[%clk
0:00:13.7]} 43. Rh6+ {[%clk 0:01:00.6]} 43... Kg5 {[%clk 0:00:11.7]} 44. Nxe5
{[%clk 0:01:00.9]} 44... dxe5 {[%clk 0:00:11.8]} 45. Rbxe6 {[%clk 0:00:58.5]}
45... Rd5 {[%clk 0:00:11.2]} 46. Kg3 {[%clk 0:00:53.1]} 46... f4+ {[%clk
0:00:09.2]} 47. Kh2 {[%clk 0:00:53.2]} 1-0